Cogmind - Beta 16 @@@ ROGUE MODE // 2026.02.07 @ 01:37:22 Player: Rocket Result: Self-destructed Performance ------------- Evolutions (1) 500 Regions Visited (3) 600 Robots Destroyed (20) 100 Value Destroyed (359) 359 Prototype IDs (0) 0 Alien Tech Used (0) 0 Bonus (90) 90 TOTAL SCORE: 1649 Bonus ------- Follower Combat Kills 100 Friendly Fire -10 Cogmind --------- Core Integrity 345/400 Matter 295/300 Energy 14/100 System Corruption 0% Temperature Cool (6) Movement Walking (120) Location -9/Materials Parts ------- > --- POWER (1) -------- (None) > --- PROPULSION (2) --- Aluminum Leg Aluminum Leg > --- UTILITY (2) ------ Improved Heat Sink Medium Storage Unit > --- WEAPON (4) ------- Small Laser Particle Gun > --- INVENTORY (10) --- Ion Engine Light Ion Engine Aluminum Leg Aluminum Leg Compact Wheel Visual Processing Unit Seismic Detector Seismic Detector Power Shielding Peak State ------------ > --- POWER ------------ Light Nuclear Core > --- PROPULSION ------- Aluminum Leg Aluminum Leg > --- UTILITY ---------- Improved Heat Sink Medium Storage Unit > --- WEAPON ----------- Small Laser Particle Gun > --- INVENTORY -------- Ion Engine Light Ion Engine Aluminum Leg Aluminum Leg Aluminum Leg Compact Wheel Visual Processing Unit Seismic Detector Power Shielding [Rating: 13] Favorites ----------- Power Light Nuclear Core Engine Light Ion Engine Power Core Light Nuclear Core Propulsion Aluminum Leg Leg Aluminum Leg Utility Improved Heat Sink Device Improved Heat Sink Storage Medium Storage Unit Weapon Small Laser Energy Gun Small Laser Ballistic Gun Assault Rifle Launcher Grenade Launcher Build | -11 -10 -10 -9 ------- Run | Yrd Mat Min Mat Slots Evolved 2 | . . . 2 Power . | . . . . Propulsion . | . . . . Utility . | . . . . Weapon 2 | . . . 2 Parts Attached 15 | 7 5 . 3 Power 2 | 1 1 . . Engine 1 | 1 . . . Core 1 | . 1 . . Reactor . | . . . . Propulsion 3 | 2 . . 1 Treads . | . . . . Leg 3 | 2 . . 1 Wheel . | . . . . Hover . | . . . . Flight . | . . . . Utility 4 | 2 2 . . Device 2 | 1 1 . . Storage 2 | 1 1 . . Processor . | . . . . Hackware . | . . . . Protection . | . . . . Artifact . | . . . . Weapon 6 | 2 2 . 2 Energy Gun 4 | 1 2 . 1 Energy Cannon . | . . . . Ballistic Gun 1 | 1 . . . Ballistic Cannon . | . . . . Launcher 1 | . . . 1 Special Weapon . | . . . . Impact Weapon . | . . . . Slashing Weapon . | . . . . Piercing Weapon . | . . . . Special Melee Weapon . | . . . . Unidentified Prototypes . | . . . . Parts Lost 4 | . 1 . 3 Power 1 | . . . 1 Propulsion . | . . . . Utility . | . . . . Weapon 3 | . 1 . 2 Highest Loss Streak 3 | . 1 . 3 To Critical Strikes . | . . . . Average Backups 6 | . 5 9 8 Power 1 | . 1 2 2 Propulsion 2 | . 2 3 2 Utility 2 | . 1 4 4 Weapon . | . . . . Tool/Special . | . . . . Unused Backups 9 | . . 2 7 Power 1 | . . . 1 Propulsion 4 | . . 2 2 Utility 4 | . . . 4 Weapon . | . . . . Tool/Special . | . . . . Average Slot Usage (%) 96 | . 99 100 83 Engine 2 | . 4 . . Core 10 | . 9 14 9 Leg 26 | . 28 28 22 Device 13 | . 14 14 11 Storage 13 | . 14 14 11 Energy Gun 24 | . 23 28 22 Ballistic Gun 2 | . 4 . . Launcher 1 | . . . 7 Peak Build Rating 13 | 7 13 13 13 Average Rating 11 | 4 10 13 12 On Entrance 8 | . 7 13 13 Avg Prop Armor Cover (%) . | . . . . Naked Turns . | . . . . Heaviest Build 23 | 13 20 20 23 Greatest Support 20 | 20 20 20 20 Greatest Overweight (x) 1 | . . . 1 Average Overweight (x) . | . . . . Largest Inventory Capacity 10 | 8 10 10 10 Average Capacity 9 | 6 9 10 10 Most Carried 10 | . 10 10 9 Average Carried 6 | . 5 9 8 Final Capacity 10 | 8 10 10 10 Final Carried 10 | . 10 9 9 Class Distribution -------------------- 64% | Scavenger-Mutant 21% | Mutant 14% | Scavenger-Gunner Dominant Class ---------------- Scavenger-Mutant | -10/Materials Scavenger-Mutant | -10/Mines Scavenger-Gunner | -9/Materials Resources | -11 -10 -10 -9 ----------- Run | Yrd Mat Min Mat Matter Collected 392 | 79 278 . 35 Remotely . | . . . . Salvage Created 569 | 47 348 37 137 Parts 43 | 6 25 2 10 Haulers Intercepted . | . . . . Recyclers Shooed . | . . . . Parts Field Recycled . | . . . . Retrieved Matter . | . . . . Parts Self-Destructed . | . . . . Prevented . | . . . . Parts Restored . | . . . . Kills | -11 -10 -10 -9 ------- Run | Yrd Mat Min Mat Combat Hostiles Destroyed 9 | . 4 2 3 Guns 7 | . 4 2 1 AOE 2 | . . . 2 Classes Destroyed 8 | 1 4 1 2 Worker 5 | . 3 1 1 Builder 1 | . . . 1 Tunneler 2 | 2 . . . Recycler 1 | . 1 . . Watcher 2 | . 2 . . Swarmer 2 | . . 2 . Grunt 6 | . 4 . 2 Duelist 1 | . . . 1 Best Kill Streak 5 | 2 5 2 3 Combat Bots Only 3 | . 2 2 3 Max Kills in Single Turn 2 | 1 1 1 2 Gunslinging . | . . . . Exploded 2 | . . . 2 Melee . | . . . . Uniques/NPCs Destroyed . | . . . . Combat | -11 -10 -10 -9 -------- Run | Yrd Mat Min Mat Hostile Shots Fired 65 | . 13 11 41 Missed 15 | . 3 . 12 Hits 50 | . 10 11 29 Projectile 50 | . 10 11 29 AOE 1 | . . 1 . Critical Strikes 3 | . . 2 1 Damage Taken 695 | . 150 140 405 Core 125 | . 16 54 55 Absorbed by Shields . | . . . . Core Remaining (%) 86 | 100 . 72 . Volleys Fired 49 | 2 26 6 15 Largest 3 | 2 2 2 3 Hottest 145 | 60 105 105 145 Shots Fired 98 | 4 46 12 36 Gun 96 | 4 46 12 34 Cannon . | . . . . Launcher 2 | . . . 2 Special . | . . . . Kinetic 14 | 2 12 . . Thermal 74 | . 28 12 34 Explosive 2 | . . . 2 Electromagnetic 8 | 2 6 . . Robot Hit Streak 10 | 2 10 6 5 Robot Miss Streak 4 | . 2 4 1 Penetration Max . | . . . . Secondary Targets 2 | . . 1 1 Max Gunslinging Chain 1 | . . 1 1 Shots Hit Robots 58 | 2 28 7 21 Core Hits 34 | 2 16 3 13 Critical Kills . | . . . . Critical Parts Destroyed . | . . . . Critical Strikes . | . . . . Melee Attacks . | . . . . Impact . | . . . . Slashing . | . . . . Piercing . | . . . . Sneak Attacks . | . . . . Combat Hostiles . | . . . . Follow-up Attacks . | . . . . Damage Inflicted 988 | 23 393 91 481 Guns 805 | 23 393 91 298 Cannons . | . . . . Explosions 183 | . . . 183 Melee . | . . . . Ramming . | . . . . Kinetic 135 | 10 125 . . Thermal 589 | . 200 91 298 Explosive 183 | . . . 183 Electromagnetic 81 | 13 68 . . Impact . | . . . . Slashing . | . . . . Piercing . | . . . . Highest Corruption . | . . . . Average Corruption . | . . . . Corruption Purged . | . . . . Corruption Blocked . | . . . . Overload Shots . | . . . . Overflow Damage . | . . . . Projectiles . | . . . . Explosions . | . . . . Melee . | . . . . Knockbacks . | . . . . Impact . | . . . . Kinetic . | . . . . Secondary . | . . . . Self-Inflicted Damage . | . . . . Shots . | . . . . Rammed . | . . . . Targets Rammed . | . . . . Kicked . | . . . . Crushed . | . . . . Highest Temperature 88 | . 45 45 88 Average Temperature 24 | . 13 20 41 Received Heat Transfer 267 | . 84 . 183 Siege Activations . | . . . . Martial Activations . | . . . . Shielding Activations . | . . . . Robots Disrupted . | . . . . Combat Hostiles . | . . . . Robots Corrupted . | . . . . Combat Hostiles . | . . . . Parts Fried . | . . . . Impact Corruptions . | . . . . Robots Melted . | . . . . Combat Hostiles . | . . . . Parts Melted 3 | . 2 1 . Heat Transferred 1365 | . 459 223 683 Parts Sabotaged . | . . . . Parts Stolen . | . . . . Parts Stripped . | . . . . Power Chain Reactions . | . . . . Alert | -11 -10 -10 -9 ------- Run | Yrd Mat Min Mat Maximum Alert Level . | . . . . Low Security (%) 100 | 100 100 100 100 Level 1 . | . . . . Level 2 . | . . . . Level 3 . | . . . . Level 4 . | . . . . Level 5 . | . . . . High Security . | . . . . Max Security . | . . . . Peak Influence 159 | 5 75 73 159 Initial 20 | . 3 . 20 Average 24 | . 20 22 47 Influence Increases 523 | 10 179 113 221 Destroy 0b10 Robot/C 260 | . 80 60 120 Destroy 0b10 Robot/NC 55 | 10 30 5 10 Destroy Leader 74 | . 24 10 40 Allied During Kill 26 | . . 8 18 Destroy Structure 18 | . . . 18 Lose Combat Pursuer 90 | . 45 30 15 Influence Decreases 407 | 5 184 60 158 Entered New Map 35 | . 2 . 33 Time Decay 292 | 5 172 60 55 Lost Part 40 | . 10 . 30 Lost Ally 40 | . . . 40 Squads Dispatched 1 | . . . 1 Investigation . | . . . . Extermination . | . . . . Reinforcement 1 | . . . 1 Assault . | . . . . Garrison . | . . . . Intercept . | . . . . Searches Triggered . | . . . . Construction Impeded . | . . . . Haulers Reinforced . | . . . . Active Scanning Responses . | . . . . Cargo Convoy Interrupts . | . . . . Stealth | -11 -10 -10 -9 --------- Run | Yrd Mat Min Mat Distress Signals 2 | . 1 . 1 Communications Jammed . | . . . . Distress Signals . | . . . . Times Spotted 31 | . 9 7 15 Peak Tracking Total 6 | . 4 4 6 Tactical Retreats 4 | . 2 1 1 Traps | -11 -10 -10 -9 ------- Run | Yrd Mat Min Mat Traps Triggered . | . . . . Indirectly . | . . . . Trap Hack Attempts . | . . . . Triggered . | . . . . Disarmed . | . . . . Reprogrammed . | . . . . Reused . | . . . . Traps Extracted . | . . . . Installed . | . . . . Triggered . | . . . . Machines | -11 -10 -10 -9 ---------- Run | Yrd Mat Min Mat Machines Disabled . | . . . . Max in Single Turn . | . . . . Machines Repaired . | . . . . Machines Dismantled . | . . . . Machines Sabotaged . | . . . . Overloaded Fab Kills . | . . . . Hacking | -11 -10 -10 -9 --------- Run | Yrd Mat Min Mat Machines Accessed 4 | . 3 . 1 Terminals 4 | . 3 . 1 Fabricators . | . . . . Repair Stations . | . . . . Recycling Units . | . . . . Scanalyzers . | . . . . Garrison Access . | . . . . Total Hacks 5 | . 4 . 1 Successful 1 | . 1 . . Failed 4 | . 3 . 1 Catastrophic 3 | . 2 . 1 Database Lockouts . | . . . . Manual 4 | . 3 . 1 Terminals 5 | . 4 . 1 Fabricators . | . . . . Repair Stations . | . . . . Recycling Units . | . . . . Scanalyzers . | . . . . Garrison Access . | . . . . Terminal Hacks 1 | . 1 . . Record 1 | . 1 . . Fabricator Hacks . | . . . . Repair Station Hacks . | . . . . Recycling Unit Hacks . | . . . . Scanalyzer . | . . . . Garrison Access Hacks . | . . . . Unauthorized Hacks . | . . . . Terminals . | . . . . Fabricators . | . . . . Repair Stations . | . . . . Recycling Units . | . . . . Scanalyzers . | . . . . Garrison Access . | . . . . Data Cores Recovered . | . . . . Used . | . . . . Hacking Detections 4 | . 3 . 1 Full Trace Events . | . . . . Feedback Events . | . . . . Feedback Blocked . | . . . . Robot Schematics Acquired . | . . . . Robots Built . | . . . . Authchips . | . . . . Time . | . . . . Total Robot Build Rating . | . . . . Part Schematics Acquired . | . . . . Parts Built . | . . . . Authchips . | . . . . Time . | . . . . Total Part Build Rating . | . . . . Part Studies Acquired . | . . . . Parts Repaired . | . . . . Time . | . . . . Parts Recycled . | . . . . Recycled Matter . | . . . . Retrieved Matter . | . . . . Retrieved Components . | . . . . Parts Scanalyzed . | . . . . Part Schematics Acquired . | . . . . Parts Damaged . | . . . . Bothacking | -11 -10 -10 -9 ------------ Run | Yrd Mat Min Mat Used RIF Installer . | . . . . Robots Hacked . | . . . . Non-combat . | . . . . Combat . | . . . . Robot Hacks Applied . | . . . . Relay Couplers Released . | . . . . Fabnet Peak Effective % . | . . . . Robots Rewired . | . . . . Allies Hacked . | . . . . Hacks Repelled . | . . . . Allies | -11 -10 -10 -9 -------- Run | Yrd Mat Min Mat Total Allies 2 | . . 2 . Largest Group 2 | . . 2 2 Highest-Rated Group 45 | . . 45 45 Highest-Rated Ally 31 | . . 31 31 Total Orders . | . . . . Ally Attacks 13 | . . 2 11 Total Damage 228 | . . 41 187 Kills 4 | . . 1 3 Allies Corrupted . | . . . . Allies Melted . | . . . . Intel | -11 -10 -10 -9 ------- Run | Yrd Mat Min Mat Active Infowar (turns) 168 | 16 152 . . Seismic 168 | 16 152 . . Robot Analysis Total . | . . . . Derelict Logs Recovered 1 | . . 1 . Drone Launches . | . . . . Drone Recoveries . | . . . . Exploration | -11 -10 -10 -9 ------------- Run | Yrd Mat Min Mat Turns Passed 959 | 58 543 192 166 Spaces Moved 578 | 36 359 118 65 Core 2 | 2 . . . Treads . | . . . . Legs 576 | 34 359 118 65 Wheels . | . . . . Hover . | . . . . Flight . | . . . . Fastest Speed 50 | 50 120 120 120 Average Speed 126 | 116 120 120 177 Slowest Speed 190 | 120 120 120 190 Overloaded Moves . | . . . . Propulsion Burnouts . | . . . . Robots Hopped . | . . . . Potential Cave-ins . | . . . . Cave-ins Triggered . | . . . . Exploration Rate (%) 25 | 3 44 41 12 Regions Visited 3 Branch Regions 1 Pre-discovered Areas . | . . . . Known Exits Taken . | . . . . Unknown Exits Taken 3 | 1 1 1 . Scrap Searched . | . . . . Spaces Dug . | . . . . Terrain Destroyed 17 | . . . 17 Melee . | . . . . Projectile . | . . . . AOE 17 | . . . 17 Terrain Rammed . | . . . . Walls Destroyed . | . . . . Machines Disabled . | . . . . Actions | -11 -10 -10 -9 --------- Run | Yrd Mat Min Mat Total 710 | 44 426 157 83 Wait 52 | . 21 31 . Move 575 | 35 358 117 65 Hop . | . . . . Pick Up 12 | . 11 1 . Fast Attach 11 | 7 3 . 1 Attach 1 | . . . 1 Detach . | . . . . Swap 3 | . 2 . 1 Drop 7 | . 5 2 . Fire 49 | 2 26 6 15 Melee . | . . . . Ram . | . . . . Kick . | . . . . Crush . | . . . . Escape Stasis . | . . . . Rewire . | . . . . Trap . | . . . . Miscellaneous . | . . . . Route ------- -11/Scrapyard -10/Materials (discovered 2 exits: [*Min x2]) -10/Mines -9/Materials (discovered 1 exit: [*Min]) History --------- Turn | Location | Event 8 | -11/Scrapyard | Discovered new exit (range 14) 59 | -11/Scrapyard | Entered Materials 365 | -10/Materials | Discovered new exit (range 8) 506 | -10/Materials | Build established: Scavenger-Mutant 596 | -10/Materials | Discovered new exit (range 5) 602 | -10/Materials | Entered Mines 603 | -10/Mines | Assembled infested the area 610 | -10/Mines | Learned Materials garrison access intel 738 | -10/Mines | Discovered new exit (range 9) 794 | -10/Mines | Entered Materials 794 | -9/Materials | Accompanied by 2 allies 794 | -9/Materials | Evolved 2 slots: Weapon x2 799 | -9/Materials | Led the pair of lost Derelicts to an unsafe place 927 | -9/Materials | Discovered new exit (range 16) 960 | -9/Materials | Self-destructed Last Messages --------------- 00940_ C-30 ARC bursts open, deploying its payload. 00940_ G-47 Trooper unfolds itself. 00940_ G-34 Mercenary unfolds itself. 00941_ U-05 Engineer lays Concrete. 00944_ 6F-3SS(g): "Terrible idea. Terrible." 00944_ U-05 Engineer builds a Wall. 00947_ Y-45 Defender suffers critical hit (Burn). 00947_ Y-45 Defender destroyed. 00947_ Sml. Laser destroyed. 00948_ U-05 Engineer builds a Door. 00950_ The unstable cave ceiling collapses. 00950_ 33 Matter crushed. 00952_ U-05 Engineer builds a Wall. 00953_ G-47 Trooper heat damages Particle Gun, Imp. Heat Sink, Aluminum Leg. 00957_ 6F-3SS(g) destroyed. 00958_ K-01 Serf collects debris. 00960_ G-47 Trooper heat spikes uncontrollably. Map ----- +----------------------------------------------------+ | | | | | | | | | | | | | ?????????????????????????????????????????????????? | | ?????????????????????????????????????????????????? | | ?????????????????????????????????????????????????? | | ?????????????????????????????????????????????????? | | ?????????????????????????????????????????????????? | | ?????????????????????????????????????????????????? | | ?????????????????????????????????????????????????? | | ?????????????????????????????????????????????????? | | ?????????????????????????????????????????????????? | | ?????????????????????????????????????????????????? | | ?????????????????????????????????????????????????? | | ????????????????????????????????????############## | | ???????????????????????###########??# # | | ???????????????????????# #### !!! "" # | | ???????????????????????# """ + ?# !!! T" # | | ???????????????????????# """ #??# !! "" + | | ???????????????????????#== """ #??# # | | ???????????????????????#= g #??# # | | ???????????????????????# #??# ! # | | ???????????????????????# @ #??# = # | | ?????????????????????### !* ############## | | ??????????????# ## # #/# %## #???????# | | ??????????????# =% g g= %%Y!r/ "" ######### | | ??????????????# <=%! o [%=*# ## T" ## # | | ??????????????# [!Y %! #### "" ## """ # | | ??????????????# ######### #??# ## """ # | | ??????????????## k #?????######??# ## """ # | | ???????????????# ??????????????# ## # | | ???????????????# ???????????????# ## # | | ???????????????# ???????????????####+######+### | | ???????????????#????????????????# % | | ????????????????????????????????# = | | ????????????????????????????????# | | ????????????????????????????????# ############## | | ????????????????????????????????# ?????????????? | | ????????????????????????????????# ?????????????? | | ????????????????????????????????# ?????????????? | | ????????????????????????????????# ?????????????? | | ????????????????????????????????# ?????????????? | | ????????????????????????????????# ?????????????? | | ????????????????????????????????# ?????????????? | | ????????????????????????????????# ??????????????? | | ????????????????????????????????# ??????????????? | | ????????????????????????????????# ??????????????? | +----------------------------------------------------+ Best States ------------- Heat Dissipation 42 Energy Generation 14 Energy Capacity 160 Matter Stores 300 Matter Capacity 300 Sight Range 16 Terrain Scan Density 10 Evasion (%) 55 Item Schematics ----------------- None Robot Schematics ------------------ None Fabricated ------------ Nothing Repaired ---------- Nothing Studied --------- None Alien Tech Used ----------------- None Achievements -------------- None Challenges ------------ None Game ------ Seed CorruptionPiercingJetlance Manual? 0 Play Time 00:06:38 Cumulative 80.5 hours Start 2026.02.07 @ 00:40:06 End 2026.02.07 @ 01:37:22 Sessions 3 Manual Loads 0 Difficulty Rogue Special Mode None Game No. 122 Rogue 122 Adventurer 0 Explorer 0 Win Type - Total 0 Types 0/0/0/0/0/0/0/0/0/0 Lore% 17 Gallery% 35 Achievement% 26 Wizard Run 0 Options --------- Layout 1 ASCII 0 Keyboard 0 Movement Mouse Keybinds 0 Fullscreen 2 Font 24/Smallcaps Map View 25x17 Zoom Use 59% Tactical HUD 1 Map Filters NONE Filters NONE Steam 1 RUN: de12a0a7-bf50-43a6-8935-aaafb0d9bb60